[Event "10th Cesme Open-A 2024"]
[Site "Cesme"]
[Date "2024.06.24"]
[Round "2"]
[White "Kovalev, Vladislav"]
[Black "Gunduz, Umut Erdem"]
[Result "1/2-1/2"]
[ECO "C43"]
[WhiteElo "2559"]
[BlackElo "2312"]
[Annotator "TA"]
[PlyCount "59"]
[EventDate "2024.06.23"]
[EventType "swiss"]
[EventCountry "TUR"]
[SourceTitle "playchess.com"]
[Source "ChessBase"]
[SourceQuality "1"]
[TimeControl "5400+30"]

{[%evp 13,59,31,26,0,0,0,33,20,8,0,0,0,0,0,0,0,0,0,0,0,0,-2,-4,-8,-1,-6,-6,-6,-6,-8,-12,-10,0,0,0,0,0,0,0,0,26,0,0,0,0,0,0,0]} 1. e4 {[%emt 0:01:00]} e5 {[%emt 0:07:00]} 2. Nf3 {[%emt 0:01:30]} Nf6 {[%emt 0:00:00]} 3. d4 {[%emt 0:04:30]} Nxe4 {[%emt 0:00:00]} 4. Bd3 {[%emt 0:00:30]} d5 {[%emt 0:01:30]} 5. Nxe5 {[%emt 0:00:00]} Nd7 {[%emt 0:03:30]} 6. Nxd7 {[%emt 0:03:00]} Bxd7 {[%emt 0:00:30]} 7. O-O {[%emt 0:00:30]} Bd6 {[%emt 0:04:30]} 8. Nc3 {[%emt 0:00:30]} Nxc3 {[%emt 0:01:30]} 9. bxc3 {[%emt 0:00:30]} h5 {[%emt 0:00:30]} 10. Re1+ {[%emt 0:07:30] White is slightly better.} Kf8 {[%emt 0:00:30]} 11. Be3 {[%emt 0:04:30]} Qh4 {[%emt 0:11:30]} 12. g3 {[%emt 0:01:30]} Qg4 {[%emt 0:02:30]} (12... Qh3 {is more complex.} 13. c4 h4 14. Bf1 Qf5) 13. Rb1 {[%emt 0:03:30]} Qxd1 {[%emt 0:02:30]} 14. Rexd1 {[%emt 0:00:00]} b6 {[%emt 0:00:30]} 15. h4 {[%emt 0:01:00]} Re8 {[%emt 0:02:30]} 16. Re1 {[%emt 0:00:30]} g6 {[%emt 0:02:30]} 17. c4 {[%emt 0:00:30]} dxc4 {[%emt 0:00:30]} 18. Bxc4 {[%emt 0:00:30]} Kg7 {[%emt 0:01:30]} 19. Bd3 {[%emt 0:01:30]} Re7 {[%emt 0:01:30]} 20. c4 {[%emt 0:07:30]} Rhe8 {[%emt 0:03:30][%cal Od6g3] [#] Threatens to win with ...Bxg3!} 21. Bd2 {[%emt 0:05:30]} Rxe1+ {[%emt 0:03:30]} 22. Bxe1 {[%emt 0:02:30]} c5 {[%emt 0:00:30]} 23. d5 {[%emt 0:03:30]} Be5 {[%emt 0:00:00]} 24. Bd2 {[%emt 0:00:30]} Bd4 {[%emt 0:09:00]} 25. Rb3 {[%emt 0:03:30]} Bg4 {[%emt 0:00:30]} 26. Kf1 {[%emt 0:13:30]} Bh3+ {[%emt 0:00:30]} 27. Kg1 {[%emt 0:00:30]} Bg4 {[%emt 0:00:00] The position is equal.} 28. Kf1 {[%emt 0:01:30]} Bh3+ {[%emt 0:00:00]} 29. Kg1 {[%emt 0:00:30]} Bg4 {[%emt 0:00:30]} 30. Kf1 {[%emt 0:00:00] A rather calm draw.   Weighted Error Value: White=0.03 (flawless) /Black=0.02 (flawless) .  Inaccurate:     	White=1     	Black=1      OK:         	White=10    	Black=15     Best:        	---       	Black=1} 1/2-1/2

[Event "10th Cesme Open-A 2024"]
[Site "Cesme"]
[Date "2024.06.24"]
[Round "2"]
[White "Kharitonov, Alexandr"]
[Black "Koksal, Ege"]
[Result "1/2-1/2"]
[ECO "D35"]
[WhiteElo "2522"]
[BlackElo "2297"]
[Annotator "TA"]
[PlyCount "53"]
[EventDate "2024.06.23"]
[EventType "swiss"]
[EventCountry "TUR"]
[SourceTitle "playchess.com"]
[Source "ChessBase"]
[SourceQuality "1"]
[TimeControl "5400+30"]

{[%evp 12,53,16,22,38,34,25,20,28,48,34,17,25,21,18,18,23,8,7,0,0,0,0,0,0,0,0,0,0,0,0,0,0,0,0,0,-13,-12,-7,-20,0,0,0,0]} 1. d4 {[%emt 0:01:00]} d5 {[%emt 0:02:00]} 2. c4 {[%emt 0:00:30]} e6 {[%emt 0:00:30]} 3. Nc3 {[%emt 0:00:30]} Nf6 {[%emt 0:00:00]} 4. cxd5 {[%emt 0:00:00]} Nxd5 {[%emt 0:00:00]} 5. e4 {[%emt 0:04:00]} Nxc3 {[%emt 0:00:00]} 6. bxc3 {[%emt 0:00:30]} c5 {[%emt 0:00:00]} 7. Rb1 {[%emt 0:00:30]} cxd4 {[%emt 0:00:00]} 8. cxd4 {[%emt 0:00:00]} Nc6 {[%emt 0:01:00]} 9. Bb5 {[%emt 0:01:00]} Bd7 {[%emt 0:03:30]} 10. Nf3 {[%emt 0:00:30] Threatens to win with d5.} Bb4+ {[%emt 0:02:30]} 11. Bd2 {[%emt 0:00:30]} Bxd2+ {[%emt 0:00:00]} 12. Qxd2 {[%emt 0:00:30]} O-O {[%emt 0:08:00]} 13. O-O {[%emt 0:00:30]} b6 {[%emt 0:06:30]} 14. d5 {[%emt 0:13:30]} Na5 {[%emt 0:01:30] The position is equal.} 15. Bxd7 {[%emt 0:01:30]} Qxd7 {[%emt 0:00:30]} 16. d6 {[%emt 0:00:30]} f6 {[%emt 0:00:30]} (16... Nc4 17. Qd4 Rfc8 (17... Nxd6 $2 {perishes.} 18. e5 $18) 18. Rbc1 $18) 17. Rbc1 {[%emt 0:08:30]} Rac8 {[%emt 0:00:30] Prevents Rc7.} 18. e5 {[%emt 0:09:30]} Nc4 {[%emt 0:02:30]} 19. Qd3 {[%emt 0:02:30]} Nxe5 {[%emt 0:02:30]} 20. Nxe5 {[%emt 0:00:30]} fxe5 {[%emt 0:00:00]} 21. h3 {[%emt 0:01:30]} Rfd8 {[%emt 0:10:00]} 22. Rxc8 {[%emt 0:00:30]} Qxc8 {[%emt 0:03:30]} 23. Rd1 {[%emt 0:00:30]} Qc6 {[%emt 0:00:30]} 24. d7 {[%emt 0:02:30]} b5 {[%emt 0:04:30]} 25. h4 {[%emt 0:00:30]} e4 {[%emt 0:04:30]} 26. Qd2 {[%emt 0:04:30]} h6 {[%emt 0:00:30]} 27. Kh2 {[%emt 0:08:30] Weighted Error Value: White=0.03 (flawless) /Black=0.02 (flawless) .  OK:         	White=8     	Black=12     Best:        	---       	Black=1} 1/2-1/2

[Event "10th Cesme Open-A 2024"]
[Site "Cesme"]
[Date "2024.06.24"]
[Round "2"]
[White "Gholami, Aryan"]
[Black "Biyiksiz, Ali Batuhan"]
[Result "1-0"]
[ECO "A46"]
[WhiteElo "2481"]
[BlackElo "2107"]
[Annotator "RC"]
[PlyCount "83"]
[EventDate "2024.06.23"]
[EventType "swiss"]
[EventCountry "TUR"]
[SourceTitle "playchess.com"]
[Source "ChessBase"]
[SourceQuality "1"]
[TimeControl "5400+30"]

1. Nf3 {[%emt 0:01:00]} Nf6 {[%emt 0:01:00]} 2. d4 {[%emt 0:00:30]} e6 {[%emt 0:00:30]} 3. Bf4 {[%emt 0:00:30]} c5 {[%emt 0:00:30]} 4. e3 {[%emt 0:00:30]} Qb6 {[%emt 0:00:00]} 5. Qc1 {[%emt 0:00:00]} Nc6 {[%emt 0:00:00]} 6. c3 {[%emt 0:00:00]} Nh5 {[%emt 0:00:30]} 7. Bg3 {[%emt 0:01:30]} Nxg3 {[%emt 0:00:30]} 8. hxg3 {[%emt 0:00:30]} d5 {[%emt 0:00:30]} 9. Bd3 {[%emt 0:00:30]} Bd7 {[%emt 0:04:30]} 10. Nbd2 {[%emt 0:00:30]} Rc8 {[%emt 0:03:30]} 11. Qb1 {[%emt 0:03:30]} Bd6 {[%emt 0:06:30]} 12. a3 {[%emt 0:09:30]} a5 {[%emt 0:12:30]} 13. a4 {[%emt 0:01:30]} e5 {[%emt 0:08:30]} 14. dxe5 {[%emt 0:20:30]} Nxe5 {[%emt 0:04:30]} 15. Nxe5 {[%emt 0:01:30]} Bxe5 {[%emt 0:00:30]} 16. Rh5 {[%emt 0:01:30]} Qd6 {[%emt 0:07:30]} 17. f4 {[%emt 0:00:30]} Bf6 {[%emt 0:00:30]} 18. e4 {[%emt 0:00:00]} dxe4 {[%emt 0:10:30]} 19. Nxe4 {[%emt 0:00:00]} Qe7 {[%emt 0:00:30]} 20. Kf2 {[%emt 0:01:30]} c4 {[%emt 0:08:30]} 21. Be2 {[%emt 0:04:30]} Kf8 {[%emt 0:26:20]} 22. Rxa5 {[%emt 0:05:30]} Re8 {[%emt 0:00:48]} 23. Bf3 {[%emt 0:06:30]} Bc6 {[%emt 0:00:40]} 24. Ng5 {[%emt 0:01:30]} Qe3+ {[%emt 0:02:33]} 25. Kf1 {[%emt 0:00:30]} Qb6 {[%emt 0:00:37]} 26. Rf5 {[%emt 0:02:30]} h6 {[%emt 0:00:25]} 27. Ne4 {[%emt 0:01:30]} Bxe4 {[%emt 0:00:30]} 28. Bxe4 {[%emt 0:00:00]} Qe3 {[%emt 0:00:52]} 29. Bf3 {[%emt 0:00:00]} Be7 {[%emt 0:00:02]} 30. Re5 {[%emt 0:02:30]} Qd2 {[%emt 0:01:05]} 31. Qe1 {[%emt 0:00:30]} Qxb2 {[%emt 0:00:05]} 32. Rb1 {[%emt 0:00:30]} Qc2 {[%emt 0:00:40]} 33. Rxb7 {[%emt 0:00:30]} Qd3+ {[%emt 0:00:30]} 34. Be2 {[%emt 0:00:00]} Qd6 {[%emt 0:00:00]} 35. Bxc4 {[%emt 0:00:00]} Qc6 {[%emt 0:00:31]} 36. Bd5 {[%emt 0:00:30]} Qa6+ {[%emt 0:00:51]} 37. c4 {[%emt 0:00:30]} Qd6 {[%emt 0:00:30]} 38. a5 {[%emt 0:00:00]} h5 {[%emt 0:00:00]} 39. a6 {[%emt 0:00:00]} h4 {[%emt 0:00:22]} 40. Rexe7 {[%emt 0:00:30]} Rxe7 {[%emt 0:00:00]} 41. Qxe7+ {[%emt 0:00:30]} Qxe7 {[%emt 0:00:27]} 42. Rb8+ {[%emt 0:00:00]} 1-0

[Event "10th Cesme Open-A 2024"]
[Site "Cesme"]
[Date "2024.06.24"]
[Round "2"]
[White "Annaberdiyev, Meylis"]
[Black "Barrish, Daniel"]
[Result "0-1"]
[ECO "B12"]
[WhiteElo "2467"]
[BlackElo "2256"]
[Annotator "TA"]
[PlyCount "96"]
[EventDate "2024.06.23"]
[EventType "swiss"]
[EventCountry "TUR"]
[SourceTitle "playchess.com"]
[Source "ChessBase"]
[SourceQuality "1"]
[TimeControl "5400+30"]

{[%evp 12,96,17,22,18,16,31,0,0,4,8,6,0,0,0,3,27,25,27,39,31,16,29,15,38,31,34,8,6,13,5,0,0,0,0,0,0,0,0,-15,-4,-29,-20,-50,-52,-46,-58,-43,-50,-64,-57,-66,-61,-61,0,0,0,0,0,0,0,0,0,0,0,0,0,0,0,-45,-52,-137,-140,-120,0,-13,-8,-1582,-1496,-2805,-2277,-29956,-29956,-29959,-29953,-5297,-5297]} 1. e4 {[%emt 0:01:00]} c6 {[%emt 0:01:00]} 2. d4 {[%emt 0:00:30]} d5 {[%emt 0:00:30]} 3. e5 {[%emt 0:00:00]} Bf5 {[%emt 0:00:00]} 4. Nf3 {[%emt 0:01:00]} e6 {[%emt 0:00:00]} 5. Be2 {[%emt 0:00:30]} c5 {[%emt 0:00:30]} 6. c3 {[%emt 0:00:00]} Nc6 {[%emt 0:01:30]} 7. O-O {[%emt 0:00:00]} cxd4 {[%emt 0:00:30]} 8. Nxd4 {[%emt 0:00:30]} Nge7 {[%emt 0:00:30]} 9. Bb5 {[%emt 0:00:30]} Qc7 {[%emt 0:00:30] The position is equal.} 10. Qa4 $1 {[%emt 0:06:30]} a6 {[%emt 0:09:30]} 11. Bxc6+ {[%emt 0:08:30]} Nxc6 {[%emt 0:00:30]} 12. Nxf5 {[%emt 0:00:30]} exf5 {[%emt 0:00:30]} 13. Re1 {[%emt 0:14:30]} Be7 {[%emt 0:09:30]} 14. Nd2 {[%emt 0:01:30]} Qd7 {[%emt 0:02:30]} 15. Nf3 {[%emt 0:01:30]} O-O {[%emt 0:08:30]} 16. Qf4 {[%emt 0:03:30]} Qe6 {[%emt 0:04:30]} 17. Qg3 {[%emt 0:01:30]} Rfd8 {[%emt 0:06:30]} 18. Be3 {[%emt 0:08:30]} b5 {[%emt 0:01:30]} 19. Rad1 {[%emt 0:00:00]} b4 {[%emt 0:12:30]} 20. cxb4 {[%emt 0:02:00]} Bxb4 {[%emt 0:03:30] [#]} 21. Bg5 $1 {[%emt 0:02:30][%cal Og5f6] Strongly threatening Bf6!} f4 $1 {[%emt 0:03:30]} 22. Qxf4 {[%emt 0:00:30]} Bxe1 {[%emt 0:01:30]} 23. Bxd8 {[%emt 0:00:30]} Bxf2+ {[%emt 0:00:30]} 24. Kxf2 {[%emt 0:00:30]} Rxd8 {[%emt 0:00:00]} 25. Rd2 {[%emt 0:10:30]} h6 {[%emt 0:06:00][%cal Od5d4]} 26. g4 {[%emt 0:00:30]} Re8 {[%emt 0:02:30][%cal Rc6e5]} 27. Qf5 {[%emt 0:03:30]} Nxe5 {[%emt 0:01:30]} 28. Qxe5 {[%emt 0:01:30]} Qxe5 {[%emt 0:00:30]} 29. Nxe5 {[%emt 0:00:30]} Rxe5 $15 {[%emt 0:00:30][%mdl 4096] Endgame. KR-KR} 30. Rd4 {[%emt 0:00:00]} Kf8 {[%emt 0:06:35]} 31. Ra4 {[%emt 0:00:00]} Re6 $1 {[%emt 0:00:36]} 32. Ra5 {[%emt 0:00:30]} Rd6 {[%emt 0:00:30]} ({Better is} 32... d4 $15) 33. Ke3 $11 {[%emt 0:00:30]} Ke7 {[%emt 0:01:26]} 34. Kd4 {[%emt 0:01:30]} Rb6 {[%emt 0:01:54]} 35. b3 {[%emt 0:02:30]} Ke6 {[%emt 0:00:25]} 36. Kc5 {[%emt 0:01:30]} (36. Rxd5 Rb4+ 37. Kc3 Rxb3+ (37... Rxg4 38. Ra5 $11) 38. Kc4 Rc3+ 39. Kd4 Rd3+ 40. Kxd3 Kxd5 $19) 36... Rd6 {[%emt 0:00:30] ...d4 is the strong threat.} 37. Kd4 {[%emt 0:00:30]} g6 {[%emt 0:00:50]} 38. b4 {[%emt 0:03:30]} f5 {[%emt 0:03:59]} 39. gxf5+ {[%emt 0:01:30]} gxf5 {[%emt 0:00:30]} 40. Rc5 {[%emt 0:00:00]} f4 {[%emt 0:01:42]} 41. Rc3 {[%emt 0:00:00]} (41. h3 $1 $15) 41... Rb6 $1 $17 {[%emt 0:05:12]} 42. a3 {[%emt 0:00:30] [#]} a5 {[%emt 0:01:45]} 43. Rh3 {[%emt 0:19:05]} Kf5 {[%emt 0:00:36]} 44. Kc5 $2 {[%emt 0:00:14][%mdl 8192] [#] Loses the game.} (44. bxa5 $11 Rb5 45. Rxh6) 44... Rf6 $1 $19 {[%emt 0:01:52] Hoping for ...axb4.} 45. Rd3 {[%emt 0:06:32]} axb4 {[%emt 0:01:12]} 46. axb4 {[%emt 0:00:22]} Ke4 {[%emt 0:00:27]} 47. Rd1 {[%emt 0:01:54]} f3 {[%emt 0:00:16]} 48. Re1+ {[%emt 0:00:07]} Kd3 {[%emt 0:00:24] Weighted Error Value: White=0.45/Black=0.07 (flawless) .  Loses game:     	White=1     	---        Mistake:       	White=1     	Black=2      Inaccurate:     	White=5     	---        OK:         	White=13    	Black=10     Best:        	White=1     	Black=2      Strong:       	White=1     	Black=4} 0-1

[Event "10th Cesme Open-A 2024"]
[Site "Cesme"]
[Date "2024.06.24"]
[Round "2"]
[White "Durak, Can"]
[Black "Bolat, Inayat"]
[Result "1-0"]
[ECO "D30"]
[WhiteElo "2442"]
[BlackElo "2232"]
[Annotator "TA"]
[PlyCount "71"]
[EventDate "2024.06.23"]
[EventType "swiss"]
[EventCountry "TUR"]
[SourceTitle "playchess.com"]
[Source "ChessBase"]
[SourceQuality "1"]
[TimeControl "5400+30"]

{[%evp 13,71,7,7,0,0,16,31,42,42,42,42,47,49,45,62,53,75,70,77,39,37,32,36,50,110,103,101,89,136,137,140,130,186,172,190,185,264,262,309,241,322,316,314,297,626,610,602,632,577,622,661,622,647,653,660,654,692,660,704,697]} 1. Nf3 {[%emt 0:01:00]} d5 {[%emt 0:05:00]} 2. e3 {[%emt 0:00:00]} Nf6 {[%emt 0:00:30]} 3. c4 {[%emt 0:00:00]} c6 {[%emt 0:06:30]} 4. Nc3 {[%emt 0:01:30]} Nbd7 {[%emt 0:03:30]} 5. cxd5 {[%emt 0:00:30]} cxd5 {[%emt 0:00:30]} 6. d4 {[%emt 0:00:30]} e6 {[%emt 0:00:30]} 7. Bd3 {[%emt 0:00:30]} Bd6 {[%emt 0:00:30][%cal Bf8d6,Bd6b8,Bb8e5][%mdl 32]} 8. O-O {[%emt 0:00:30]} O-O {[%emt 0:00:30]} 9. Bd2 {[%emt 0:00:00][%cal Bc1d2,Bd2c3,Bc3d4][%mdl 32]} e5 {[%emt 0:04:30] [#] Hoping for ...e4.} 10. Nb5 {[%emt 0:02:00] White is slightly better.} Bb8 {[%emt 0:02:30] ...e4 would now be deadly.} 11. dxe5 {[%emt 0:00:30]} Nxe5 {[%emt 0:00:30]} 12. Nxe5 {[%emt 0:00:30]} Bxe5 {[%emt 0:00:00]} 13. Bc3 {[%emt 0:00:00]} Bb8 {[%emt 0:08:00]} 14. Bd4 {[%emt 0:04:00] White has more active pieces. The black rooks are passive.} a6 {[%emt 0:04:30]} 15. Nc3 {[%emt 0:00:30]} Re8 {[%emt 0:09:30]} 16. Qf3 {[%emt 0:13:30]} (16. Rc1 {simplifies} Be5 17. Bxe5 Rxe5 18. Qa4) 16... Ng4 {[%emt 0:04:30]} 17. g3 {[%emt 0:01:30]} (17. Nxd5 $2 Bxh2+ 18. Kh1 Qh4 $19) 17... Ne5 {[%emt 0:03:30]} 18. Bxe5 {[%emt 0:00:30]} (18. Qxd5 $2 Nxd3 19. Qb3 Be6 20. Qxb7 Bc7 $19) 18... Rxe5 {[%emt 0:00:30] Black is on the road to losing.} ({Better is} 18... Bxe5 $14 19. Rac1 Qa5) 19. Rfd1 $16 {[%emt 0:00:30][%cal Od3c4]} h5 {[%emt 0:01:30]} 20. Qg2 $40 {[%emt 0:01:30][%cal Od3e4][%mdl 128] White attacks with force.} Qa5 {[%emt 0:11:30]} (20... d4 $142) 21. Be2 {[%emt 0:01:30]} Be6 {[%emt 0:02:30]} 22. Bf3 {[%emt 0:00:30][%cal Rf3d5]} h4 {[%emt 0:07:30]} (22... Bd6 $16 {keeps fighting.} 23. Nxd5 (23. Bxd5 Bxd5 24. Nxd5 Re6 $16) 23... Rd8) 23. Bxd5 {[%emt 0:02:30]} (23. gxh4 $6 Qd8 $16) 23... h3 {[%emt 0:00:00]} 24. Qf3 {[%emt 0:01:30]} Bxd5 {[%emt 0:04:14]} (24... Rf5 {was called for.} 25. Qe4 Re5) 25. Nxd5 $18 {[%emt 0:00:30][%cal Od5f6] [#] Threatens to win with Nf6+!} (25. Rxd5 Rxd5 26. Qxd5 (26. Nxd5 Bd6 $16) 26... Qxd5 27. Nxd5 Be5 $16) 25... Ba7 {[%emt 0:01:22]} 26. Nf4 {[%emt 0:00:30]} Rae8 {[%emt 0:08:42][%cal Re5e3]} 27. Qxb7 {[%emt 0:00:30]} (27. Nxh3 Rxe3 28. fxe3 Rxe3 $18) 27... R5e7 {[%emt 0:02:21]} 28. Rd7 {[%emt 0:02:30]} Rxe3 {[%emt 0:06:23]} (28... Bc5 29. Rxe7 (29. Nxh3 Rxd7 30. Qxd7 Rd8 $18) 29... Bxe7) 29. fxe3 {[%emt 0:00:30] White is clearly winning.} Bxe3+ {[%emt 0:00:30]} 30. Kf1 {[%emt 0:00:00]} Bxf4 {[%emt 0:01:04]} 31. gxf4 {[%emt 0:00:00]} Qa4 {[%emt 0:01:46]} 32. Rd2 {[%emt 0:01:30]} ({Less strong is} 32. Rxf7 Qc4+ 33. Kg1 Qxf7 34. Qxf7+ (34. Qxa6 Qxf4 35. Qd3 Qg4+ 36. Qg3 Qd4+ 37. Kf1 Re3 $19) 34... Kxf7 $16) 32... Qxf4+ {[%emt 0:01:18]} 33. Rf2 {[%emt 0:00:30]} Qc4+ {[%emt 0:00:30]} 34. Kg1 {[%emt 0:00:00]} g6 {[%emt 0:00:11]} 35. Qf3 {[%emt 0:00:00]} Re5 {[%emt 0:00:44]} 36. Raf1 {[%emt 0:00:30] Weighted Error Value: White=0.13 (very precise) /Black=0.40.  Mistake:       	---       	Black=5      Inaccurate:     	White=1     	Black=1      OK:         	White=12    	Black=5      Best:        	---       	Black=1} 1-0

[Event "10th Cesme Open-A 2024"]
[Site "Cesme"]
[Date "2024.06.24"]
[Round "2"]
[White "Yermolinsky, Alex"]
[Black "Ozcan, Kaan"]
[Result "1/2-1/2"]
[ECO "D63"]
[WhiteElo "2421"]
[BlackElo "2227"]
[Annotator "RC"]
[PlyCount "173"]
[EventDate "2024.06.23"]
[EventType "swiss"]
[EventCountry "TUR"]
[SourceTitle "playchess.com"]
[Source "ChessBase"]
[SourceQuality "1"]
[TimeControl "5400+30"]

1. d4 {[%emt 0:01:00]} Nf6 {[%emt 0:01:00]} 2. c4 {[%emt 0:00:30]} e6 {[%emt 0:00:30]} 3. Nc3 {[%emt 0:00:00]} d5 {[%emt 0:00:00]} 4. Bg5 {[%emt 0:00:00]} Be7 {[%emt 0:00:00]} 5. e3 {[%emt 0:00:30]} O-O {[%emt 0:00:30]} 6. Nf3 {[%emt 0:00:30]} Nbd7 {[%emt 0:03:30]} 7. Rc1 {[%emt 0:00:30]} dxc4 {[%emt 0:04:30]} 8. Bxc4 {[%emt 0:00:30]} c5 {[%emt 0:00:30]} 9. O-O {[%emt 0:00:30]} b6 {[%emt 0:03:30]} 10. Qe2 {[%emt 0:05:30]} Bb7 {[%emt 0:18:30]} 11. Rfd1 {[%emt 0:00:00]} Ne4 {[%emt 0:03:30]} 12. Bf4 {[%emt 0:06:00]} Nxc3 {[%emt 0:07:30]} 13. Rxc3 {[%emt 0:02:30]} Bxf3 {[%emt 0:08:30]} 14. Qxf3 {[%emt 0:02:30]} cxd4 {[%emt 0:02:30]} 15. exd4 {[%emt 0:00:00]} Rc8 {[%emt 0:01:30]} 16. Qb7 {[%emt 0:23:00]} Nc5 {[%emt 0:16:30]} 17. Qxa7 {[%emt 0:11:30]} Ra8 {[%emt 0:03:30]} 18. Qc7 {[%emt 0:00:30]} Qxc7 {[%emt 0:01:30]} 19. Bxc7 {[%emt 0:00:30]} Na4 {[%emt 0:00:00]} 20. Rc2 {[%emt 0:02:30]} Rfc8 {[%emt 0:02:00]} 21. Bb3 {[%emt 0:11:30]} Nxb2 {[%emt 0:02:17]} 22. Rdd2 {[%emt 0:04:30]} Na4 {[%emt 0:02:10]} 23. g3 {[%emt 0:01:30]} Bb4 {[%emt 0:03:18]} 24. Rd3 {[%emt 0:04:30]} b5 {[%emt 0:01:16]} 25. d5 {[%emt 0:03:13]} Nc5 {[%emt 0:05:18]} 26. Rd4 {[%emt 0:03:13]} Nxb3 {[%emt 0:01:52]} 27. Rxb4 {[%emt 0:00:54]} Na1 {[%emt 0:01:11]} 28. Rc5 {[%emt 0:02:46]} exd5 {[%emt 0:00:28]} 29. Rbxb5 {[%emt 0:02:28]} Rxa2 {[%emt 0:01:30]} 30. Be5 {[%emt 0:03:15]} Re8 {[%emt 0:00:43]} 31. Rxd5 {[%emt 0:01:58]} h6 {[%emt 0:00:35]} 32. Rb7 {[%emt 0:01:14]} Re2 {[%emt 0:01:54]} 33. Bf4 {[%emt 0:02:40]} R2e7 {[%emt 0:00:59]} 34. Rb2 {[%emt 0:00:19]} Re2 {[%emt 0:01:23]} 35. Bd2 {[%emt 0:01:04]} Rc8 {[%emt 0:01:42]} 36. Rb7 {[%emt 0:00:40]} Rc2 {[%emt 0:00:51]} 37. Be3 {[%emt 0:01:00]} Re1+ {[%emt 0:00:30]} 38. Kg2 {[%emt 0:00:30]} Rxe3 {[%emt 0:00:00]} 39. Rd8+ {[%emt 0:00:00]} Kh7 {[%emt 0:00:29]} 40. Rxf7 {[%emt 0:00:00]} Re6 {[%emt 0:00:44]} 41. Rdd7 {[%emt 0:00:00]} Rg6 {[%emt 0:00:13]} 42. Rb7 {[%emt 0:01:26]} Rc8 {[%emt 0:00:39]} 43. h4 {[%emt 0:00:51]} Rg8 {[%emt 0:00:31]} 44. Rfc7 {[%emt 0:00:23]} Ra6 {[%emt 0:00:28]} 45. Rb2 {[%emt 0:00:45]} Ra3 {[%emt 0:00:55]} 46. h5 {[%emt 0:01:27]} Nb3 {[%emt 0:00:32]} 47. Rc3 {[%emt 0:01:16]} Rb8 {[%emt 0:00:04]} 48. g4 {[%emt 0:00:50]} Nd4 {[%emt 0:00:42]} 49. Rxb8 {[%emt 0:00:12]} Rxc3 {[%emt 0:00:30]} 50. Rf8 {[%emt 0:00:30]} Ne6 {[%emt 0:00:30]} 51. Rf5 {[%emt 0:00:30]} Rc5 {[%emt 0:00:30]} 52. Rf7 {[%emt 0:00:30]} Kg8 {[%emt 0:00:30]} 53. Ra7 {[%emt 0:00:30]} Rc3 {[%emt 0:00:30]} 54. Ra4 {[%emt 0:00:30]} Rd3 {[%emt 0:00:30]} 55. Rb4 {[%emt 0:00:30]} Kf7 {[%emt 0:00:00]} 56. f3 {[%emt 0:00:00]} Nd4 {[%emt 0:00:01]} 57. Rb7+ {[%emt 0:00:00]} Kg8 {[%emt 0:00:30]} 58. Rb8+ {[%emt 0:01:09]} Kh7 {[%emt 0:01:49]} 59. Rf8 {[%emt 0:00:30]} Ne6 {[%emt 0:00:30]} 60. Rf5 {[%emt 0:00:00]} Kg8 {[%emt 0:00:00]} 61. Kf2 {[%emt 0:00:17]} Rc3 {[%emt 0:00:00]} 62. Rd5 {[%emt 0:01:37]} Rc7 {[%emt 0:00:29]} 63. Rd3 {[%emt 0:00:10]} Kf7 {[%emt 0:00:56]} 64. Kg3 {[%emt 0:00:16]} Kf6 {[%emt 0:00:36]} 65. Ra3 {[%emt 0:00:12]} Nd4 {[%emt 0:00:31]} 66. Ra4 {[%emt 0:00:57]} Ne6 {[%emt 0:01:02]} 67. Ra3 {[%emt 0:00:30]} Rc2 {[%emt 0:00:00]} 68. Rd3 {[%emt 0:00:36]} Ra2 {[%emt 0:00:11]} 69. Rd5 {[%emt 0:00:30]} Ra3 {[%emt 0:00:14]} 70. Rf5+ {[%emt 0:01:39]} Ke7 {[%emt 0:00:30]} 71. Re5 {[%emt 0:00:30]} Rc3 {[%emt 0:00:03]} 72. Re4 {[%emt 0:00:10]} Kf6 {[%emt 0:00:36]} 73. Ra4 {[%emt 0:00:30]} Ng5 {[%emt 0:00:30]} 74. Rf4+ {[%emt 0:00:30]} Ke6 {[%emt 0:00:42]} 75. Rf8 {[%emt 0:00:00]} Ne4+ {[%emt 0:01:14]} 76. Kf4 {[%emt 0:00:27]} Nf6 {[%emt 0:01:03]} 77. Ra8 {[%emt 0:00:23]} Rc1 {[%emt 0:00:30]} 78. Ra6+ {[%emt 0:00:55]} Ke7 {[%emt 0:00:30]} 79. Ra7+ {[%emt 0:00:00]} Nd7 {[%emt 0:00:14]} 80. Kf5 {[%emt 0:01:14]} Rc6 {[%emt 0:00:37]} 81. f4 {[%emt 0:00:21]} Rf6+ {[%emt 0:00:50]} 82. Ke4 {[%emt 0:00:01]} Ke8 {[%emt 0:00:53]} 83. g5 {[%emt 0:00:18]} hxg5 {[%emt 0:00:34]} 84. fxg5 {[%emt 0:00:30]} Rf1 {[%emt 0:00:00]} 85. h6 {[%emt 0:00:00]} gxh6 {[%emt 0:00:09]} 86. gxh6 {[%emt 0:00:00]} Rh1 {[%emt 0:00:04]} 87. Kd4 {[%emt 0:00:15]} 1/2-1/2